Cogmind - Beta 15 @@@ ROGUE MODE // 2025.07.13 @ 04:59:47 Player: Bot Matt Result: Destroyed by Y-45 Defender with Beam Rifle Performance ------------- Evolutions (1) 500 Regions Visited (4) 800 Robots Destroyed (23) 115 Value Destroyed (769) 769 Prototype IDs (1) 20 Alien Tech Used (0) 0 Bonus (326) 326 TOTAL SCORE: 2530 Bonus ------- Follower Combat Kills 326 Cogmind --------- Core Integrity 0/400 Matter 280/300 Energy 100/100 System Corruption 0% Temperature Cool (9) Movement Walking (120) Location -9/Storage Parts ------- > --- POWER (1) -------- (None) > --- PROPULSION (3) --- Aluminum Leg > --- UTILITY (3) ------ Small Storage Unit Melee Analysis Suite Hacking Suite > --- WEAPON (2) ------- Katana > --- INVENTORY (8) ---- Ion Engine Improved Ion Engine Carbon-fiber Leg Sensor Array Improved Targeting Computer Rocket Launcher Improved Datajack Maul Peak State ------------ > --- POWER ------------ Light Angular Momentum Engine > --- PROPULSION ------- Carbon-fiber Leg Carbon-fiber Leg Carbon-fiber Leg > --- UTILITY ---------- Small Storage Unit Targeting Computer Hacking Suite > --- WEAPON ----------- Assault Rifle Autogun > --- INVENTORY -------- Ion Engine Cooled Ion Engine Sensor Array Hardened Light Armor Plating Assault Rifle Rocket Launcher Improved Datajack [Rating: 23] Favorites ----------- Power Cooled Ion Engine Engine Cooled Ion Engine Propulsion Aluminum Leg Leg Aluminum Leg Utility Small Storage Unit Device Sensor Array Storage Small Storage Unit Processor Targeting Computer Hackware Hacking Suite Weapon Assault Rifle Energy Gun Particle Gun Ballistic Gun Assault Rifle Slashing Weapon Katana Special Melee Weapon Improved Datajack Build | -11 -10 -10 -9 -9 ------- Run | Yrd Mat Min Mat Sto Slots Evolved 2 | . . . 2 . Power . | . . . . . Propulsion 1 | . . . 1 . Utility 1 | . . . 1 . Weapon . | . . . . . Parts Attached 26 | 6 4 4 5 7 Power 4 | 1 1 1 . 1 Engine 4 | 1 1 1 . 1 Core . | . . . . . Reactor . | . . . . . Propulsion 7 | 2 . 1 2 2 Treads . | . . . . . Leg 7 | 2 . 1 2 2 Wheel . | . . . . . Hover . | . . . . . Flight . | . . . . . Utility 7 | 1 1 1 3 1 Device 3 | . 1 1 1 . Storage 1 | 1 . . . . Processor 2 | . . . 1 1 Hackware 1 | . . . 1 . Protection . | . . . . . Artifact . | . . . . . Weapon 8 | 2 2 1 . 3 Energy Gun 2 | . 2 . . . Energy Cannon . | . . . . . Ballistic Gun 4 | 2 . 1 . 1 Ballistic Cannon . | . . . . . Launcher . | . . . . . Special Weapon . | . . . . . Impact Weapon . | . . . . . Slashing Weapon 1 | . . . . 1 Piercing Weapon . | . . . . . Special Melee Weapon 1 | . . . . 1 Unidentified Prototypes 1 | . 1 . . . Parts Lost 5 | . . . . 5 Power 1 | . . . . 1 Propulsion 2 | . . . . 2 Utility . | . . . . . Weapon 2 | . . . . 2 Highest Loss Streak 5 | . . . . 5 To Critical Strikes . | . . . . . Average Backups 7 | 2 7 7 7 7 Power 2 | . 1 2 2 1 Propulsion . | . 1 . . . Utility 1 | . . . 1 2 Weapon 2 | . 3 3 2 2 Tool/Special . | . . . . . Unused Backups 11 | . 3 2 1 5 Power 3 | . 1 1 . 1 Propulsion 2 | . 1 1 . . Utility 2 | . . . . 2 Weapon 4 | . 1 . 1 2 Tool/Special . | . . . . . Average Slot Usage (%) 94 | . 87 100 90 94 Engine 12 | . 14 14 11 9 Leg 27 | . 28 28 24 29 Device 8 | . 1 14 11 . Storage 12 | . 14 14 11 11 Processor 2 | . . . . 11 Hackware 5 | . . . 10 11 Energy Gun 5 | . 25 5 . . Ballistic Gun 17 | . 2 22 22 14 Slashing Weapon 1 | . . . . 5 Peak Build Rating 23 | 6 12 16 22 23 Average Rating 14 | 3 10 12 18 19 On Entrance 11 | . 6 12 16 22 Naked Turns . | . . . . . Heaviest Build 20 | 14 20 20 20 19 Greatest Support 45 | 20 20 25 45 45 Greatest Overweight (x) 2 | . . . . 2 Average Overweight (x) . | . . . . . Largest Inventory Capacity 8 | 8 8 8 8 8 Average Capacity 7 | 7 8 8 8 8 Most Carried 8 | 5 8 8 8 8 Average Carried 7 | 2 7 7 7 7 Final Capacity 8 | 8 8 8 8 8 Final Carried 8 | 4 7 8 8 8 Class Distribution -------------------- 87% | Mutant 7% | Commander-Mutant 4% | Scavenger-Mutant Dominant Class ---------------- Mutant | -10/Materials Mutant | -10/Mines Mutant | -9/Materials Mutant | -9/Storage Resources | -11 -10 -10 -9 -9 ----------- Run | Yrd Mat Min Mat Sto Matter Collected 843 | 260 30 98 72 383 Remotely . | . . . . . Salvage Created 965 | . 65 121 104 675 Parts 41 | . 1 7 . 33 Haulers Intercepted . | . . . . . Recyclers Shooed 1 | . . . . 1 Parts Field Recycled . | . . . . . Retrieved Matter . | . . . . . Parts Self-Destructed . | . . . . . Prevented . | . . . . . Kills | -11 -10 -10 -9 -9 ------- Run | Yrd Mat Min Mat Sto Combat Hostiles Destroyed 22 | . 2 5 2 13 Guns 22 | . 2 5 2 13 Classes Destroyed 6 | . 1 1 . 4 Recycler 1 | . . . . 1 Swarmer 3 | . . 3 . . Grunt 14 | . 2 2 2 8 Brawler 1 | . . . . 1 Duelist 1 | . . . . 1 Sentry 3 | . . . . 3 Best Kill Streak 6 | . 2 2 2 6 Combat Bots Only 6 | . 2 2 2 6 Max Kills in Single Turn 1 | . 1 1 1 1 Gunslinging . | . . . . . Exploded . | . . . . . Melee . | . . . . . Uniques/NPCs Destroyed . | . . . . . Combat | -11 -10 -10 -9 -9 -------- Run | Yrd Mat Min Mat Sto Hostile Shots Fired 131 | . 10 31 4 86 Missed 33 | . 3 4 2 24 Hits 98 | . 7 27 2 62 Melee 17 | . . . . 17 Projectile 81 | . 7 27 2 45 Critical Strikes 5 | . . . . 5 Damage Taken 1571 | . 78 312 31 1150 Core 460 | . . 54 . 406 Absorbed by Shields . | . . . . . Core Remaining (%) 89 | 100 . 78 . . Volleys Fired 76 | . 8 16 9 43 Largest 2 | . 2 2 2 2 Hottest 130 | . 130 130 40 43 Shots Fired 142 | . 15 32 18 77 Gun 142 | . 15 32 18 77 Cannon . | . . . . . Launcher . | . . . . . Special . | . . . . . Kinetic 105 | . . 10 18 77 Thermal 37 | . 15 22 . . Explosive . | . . . . . Electromagnetic . | . . . . . Robot Hit Streak 19 | . 7 8 7 19 Robot Miss Streak 8 | . 2 8 2 4 Penetration Max . | . . . . . Secondary Targets 3 | . . 1 . 2 Max Gunslinging Chain 1 | . . 1 . 1 Shots Hit Robots 107 | . 9 19 13 66 Core Hits 40 | . 3 8 4 25 Critical Kills . | . . . . . Critical Parts Destroyed . | . . . . . Critical Strikes 2 | . 2 . . . Burn 2 | . 2 . . . Melee Attacks 2 | . . . . 2 Impact . | . . . . . Slashing 1 | . . . . 1 Piercing . | . . . . . Sneak Attacks 1 | . . . . 1 Combat Hostiles . | . . . . . Follow-up Attacks . | . . . . . Damage Inflicted 1533 | . 136 292 163 942 Guns 1468 | . 136 292 163 877 Cannons . | . . . . . Explosions . | . . . . . Melee 61 | . . . . 61 Ramming 4 | . . . . 4 Kinetic 1126 | . . 86 163 877 Thermal 342 | . 136 206 . . Explosive . | . . . . . Electromagnetic . | . . . . . Impact . | . . . . . Slashing 61 | . . . . 61 Piercing . | . . . . . Highest Corruption 1 | . . 1 . . Average Corruption 1 | . . 1 . . Corruption Purged . | . . . . . Corruption Blocked . | . . . . . Effects 3 | . . 3 . . Matter Fused 1 | . . 1 . . Heat Flow Errors 1 | . . 1 . . Energy Discharges 1 | . . 1 . . Overload Shots . | . . . . . Overflow Damage 21 | . . . . 21 Projectiles . | . . . . . Explosions . | . . . . . Melee 21 | . . . . 21 Knockbacks . | . . . . . Impact . | . . . . . Kinetic . | . . . . . Secondary . | . . . . . Self-Inflicted Damage . | . . . . . Shots . | . . . . . Rammed . | . . . . . Targets Rammed 1 | . . . . 1 Kicked 1 | . . . . 1 Crushed . | . . . . . Highest Temperature 450 | . 408 450 1 27 Average Temperature 163 | . 174 200 1 9 Received Heat Transfer 456 | . 42 105 18 291 Effects 3 | . 1 2 . . Shutdowns 1 | . . 1 . . Interference 2 | . 1 1 . . Siege Activations . | . . . . . Martial Activations . | . . . . . Shielding Activations . | . . . . . Robots Disrupted . | . . . . . Combat Hostiles . | . . . . . Robots Corrupted . | . . . . . Combat Hostiles . | . . . . . Parts Fried . | . . . . . Impact Corruptions . | . . . . . Robots Melted . | . . . . . Combat Hostiles . | . . . . . Parts Melted 5 | . 1 1 3 . Heat Transferred 999 | . 481 518 . . Parts Sabotaged . | . . . . . Parts Stolen . | . . . . . Parts Stripped . | . . . . . Power Chain Reactions . | . . . . . Alert | -11 -10 -10 -9 -9 ------- Run | Yrd Mat Min Mat Sto Maximum Alert Level 1 | . . . . 1 Low Security (%) 89 | 100 100 100 100 60 Level 1 10 | . . . . 39 Level 2 . | . . . . . Level 3 . | . . . . . Level 4 . | . . . . . Level 5 . | . . . . . High Security . | . . . . . Max Security . | . . . . . Peak Influence 309 | . 41 55 58 309 Initial 3 | . . . . 3 Average 47 | . 9 7 10 163 Influence Increases 1032 | . 65 135 92 740 Destroy 0b10 Robot/C 680 | . 40 100 40 500 Destroy 0b10 Robot/NC 15 | . . . . 15 Destroy Leader 154 | . 10 20 10 114 Allied During Kill 95 | . . . . 95 Trap Triggered on 0b10 10 | . . . 10 . Successful Hack 30 | . 14 . 16 . Destroy Structure 3 | . 1 . 1 1 Lose Combat Pursuer 45 | . . 15 15 15 Influence Decreases 790 | . 65 135 82 508 Entered New Map 7 | . . . . 7 Time Decay 533 | . 65 135 82 251 Lost Part 50 | . . . . 50 Lost Ally 200 | . . . . 200 Squads Dispatched 8 | . 1 . . 7 Investigation . | . . . . . Extermination . | . . . . . Reinforcement 4 | . 1 . . 3 Assault . | . . . . . Garrison 4 | . . . . 4 Intercept . | . . . . . Searches Triggered . | . . . . . Construction Impeded . | . . . . . Haulers Reinforced . | . . . . . Active Scanning Responses . | . . . . . Cargo Convoy Interrupts . | . . . . . Stealth | -11 -10 -10 -9 -9 --------- Run | Yrd Mat Min Mat Sto Distress Signals 4 | . . . . 4 Communications Jammed . | . . . . . Distress Signals . | . . . . . Times Spotted 49 | . 7 6 11 25 Peak Tracking Total 6 | . 5 3 3 6 Tactical Retreats 3 | . . 1 1 1 Traps | -11 -10 -10 -9 -9 ------- Run | Yrd Mat Min Mat Sto Traps Triggered 3 | . . 1 . 2 Indirectly . | . . . . . Trap Hack Attempts . | . . . . . Triggered . | . . . . . Disarmed . | . . . . . Reprogrammed 6 | . . . 6 . Reused 1 | . . . 1 . Traps Extracted . | . . . . . Installed . | . . . . . Triggered 1 | . . . 1 . Machines | -11 -10 -10 -9 -9 ---------- Run | Yrd Mat Min Mat Sto Machines Disabled . | . . . . . Max in Single Turn . | . . . . . Machines Repaired . | . . . . . Machines Dismantled . | . . . . . Machines Sabotaged . | . . . . . Overloaded Fab Kills . | . . . . . Hacking | -11 -10 -10 -9 -9 --------- Run | Yrd Mat Min Mat Sto Machines Accessed 12 | . 3 2 5 2 Terminals 10 | . 3 1 4 2 Fabricators . | . . . . . Repair Stations . | . . . . . Recycling Units 1 | . . . 1 . Scanalyzers . | . . . . . Garrison Access . | . . . . . Total Hacks 29 | . 6 3 15 5 Successful 17 | . 3 3 11 . Failed 12 | . 3 . 4 5 Catastrophic 1 | . 1 . . . Database Lockouts . | . . . . . Manual 2 | . . 1 . 1 Terminals 26 | . 6 2 13 5 Fabricators . | . . . . . Repair Stations . | . . . . . Recycling Units 2 | . . . 2 . Scanalyzers . | . . . . . Garrison Access . | . . . . . Terminal Hacks 15 | . 3 3 9 . Open Door 1 | . . 1 . . Alert Level 2 | . . . 2 . Locate Traps 2 | . 1 . 1 . Reprogram Traps 1 | . . . 1 . Maintenance Status 2 | . . 1 1 . Surveillance Status 1 | . . . 1 . Hauler Manifests 1 | . 1 . . . Zone Layout 5 | . 1 1 3 . Fabricator Hacks . | . . . . . Repair Station Hacks . | . . . . . Recycling Unit Hacks 2 | . . . 2 . Report Inventory 1 | . . . 1 . Retrieve Components 1 | . . . 1 . Scanalyzer . | . . . . . Garrison Access Hacks . | . . . . . Unauthorized Hacks . | . . . . . Terminals . | . . . . . Fabricators . | . . . . . Repair Stations . | . . . . . Recycling Units . | . . . . . Scanalyzers . | . . . . . Garrison Access . | . . . . . Data Cores Recovered . | . . . . . Used . | . . . . . Hacking Detections 10 | . 2 1 5 2 Full Trace Events . | . . . . . Feedback Events . | . . . . . Feedback Blocked . | . . . . . Robot Schematics Acquired . | . . . . . Robots Built . | . . . . . Authchips . | . . . . . Time . | . . . . . Total Robot Build Rating . | . . . . . Part Schematics Acquired . | . . . . . Parts Built . | . . . . . Authchips . | . . . . . Time . | . . . . . Total Part Build Rating . | . . . . . Parts Repaired . | . . . . . Time . | . . . . . Parts Recycled . | . . . . . Recycled Matter . | . . . . . Retrieved Matter . | . . . . . Retrieved Components 3 | . . . 3 . Parts Scanalyzed . | . . . . . Part Schematics Acquired . | . . . . . Parts Damaged . | . . . . . Bothacking | -11 -10 -10 -9 -9 ------------ Run | Yrd Mat Min Mat Sto Used RIF Installer . | . . . . . Robots Hacked 1 | . . . . 1 Non-combat . | . . . . . Combat 1 | . . . . 1 Robot Hacks Applied 1 | . . . . 1 parse_system 1 | . . . . 1 Relay Couplers Released . | . . . . . Fabnet Peak Effective % . | . . . . . Robots Rewired . | . . . . . Allies Hacked . | . . . . . Hacks Repelled . | . . . . . Allies | -11 -10 -10 -9 -9 -------- Run | Yrd Mat Min Mat Sto Total Allies 10 | . . . . 10 Largest Group 10 | . . . . 10 Highest-Rated Group 88 | . . . . 88 Highest-Rated Ally 16 | . . . . 16 Total Orders . | . . . . . Ally Attacks 112 | . . . . 112 Total Damage 934 | . . . . 934 Kills 14 | . . . . 14 Allies Corrupted . | . . . . . Allies Melted . | . . . . . Intel | -11 -10 -10 -9 -9 ------- Run | Yrd Mat Min Mat Sto Active Infowar (turns) 1403 | . 43 842 518 . Sensors 1236 | . 43 676 517 . Terrain 201 | . . 166 35 . Robot Analysis Total . | . . . . . Derelict Logs Recovered 1 | . . 1 . . Drone Launches . | . . . . . Drone Recoveries . | . . . . . Exploration | -11 -10 -10 -9 -9 ------------- Run | Yrd Mat Min Mat Sto Turns Passed 2370 | 90 296 863 520 601 Spaces Moved 1726 | 90 205 658 394 379 Core 49 | 47 . . . 2 Treads . | . . . . . Legs 1677 | 43 205 658 394 377 Wheels . | . . . . . Hover . | . . . . . Flight . | . . . . . Fastest Speed 50 | 50 120 120 120 100 Average Speed 118 | 83 120 120 120 120 Slowest Speed 190 | 120 120 120 120 190 Overloaded Moves . | . . . . . Propulsion Burnouts . | . . . . . Robots Hopped . | . . . . . Potential Cave-ins . | . . . . . Cave-ins Triggered . | . . . . . Exploration Rate (%) 43 | 4 30 98 36 51 Regions Visited 4 Branch Regions 2 Pre-discovered Areas . | . . . . . Known Exits Taken . | . . . . . Unknown Exits Taken 4 | 1 1 1 1 . Scrap Searched 1 | . . 1 . . Spaces Dug . | . . . . . Terrain Destroyed . | . . . . . Melee . | . . . . . Projectile . | . . . . . AOE . | . . . . . Terrain Rammed . | . . . . . Walls Destroyed . | . . . . . Machines Disabled . | . . . . . Actions | -11 -10 -10 -9 -9 --------- Run | Yrd Mat Min Mat Sto Total 1921 | 104 240 700 425 452 Wait 27 | . 14 13 . . Move 1722 | 89 204 657 393 379 Hop . | . . . . . Pick Up 41 | 9 7 5 8 12 Fast Attach 1 | 1 . . . . Attach 19 | 5 1 . 2 11 Detach 1 | . . . . 1 Swap 14 | . 3 5 5 1 Drop 17 | . 3 4 8 2 Fire 76 | . 8 16 9 43 Melee 2 | . . . . 2 Ram . | . . . . . Kick 1 | . . . . 1 Crush . | . . . . . Escape Stasis . | . . . . . Rewire . | . . . . . Trap . | . . . . . Miscellaneous . | . . . . . Route ------- -11/Scrapyard -10/Materials -10/Mines (discovered 2 exits: *Mat x2) -9/Materials (discovered 4 exits: [*Mat] / *Min x2 / *Sto) -9/Storage History --------- Turn | Location | Event 14 | -11/Scrapyard | Discovered new exit (range 16) 91 | -11/Scrapyard | Entered Materials 311 | -10/Materials | Build established: Mutant 336 | -10/Materials | Discovered new exit (range 12) 387 | -10/Materials | Entered Mines 546 | -10/Mines | Discovered new exit (range 4) 582 | -10/Mines | Discovered new exit (range 11) 899 | -10/Mines | Learned 2 Materials zone layouts 929 | -10/Mines | Met a Derelict who couldn't figure out how to use a Trap Extractor 1250 | -10/Mines | Entered Materials 1250 | -9/Materials | Evolved 2 slots: Propulsion x1, Utility x1 1251 | -9/Materials | Identified exit to Mines 1568 | -9/Materials | Discovered exit to Mines (range 16) 1696 | -9/Materials | Discovered new exit (range 16) 1751 | -9/Materials | Discovered new exit (range 9) 1770 | -9/Materials | Entered Storage 1969 | -9/Storage | Garrison activated, responded to threat 2005 | -9/Storage | Core integrity fell below 50% 2020 | -9/Storage | Core integrity fell below 20% 2040 | -9/Storage | Lost 5 parts (1p2n2w) 2074 | -9/Storage | Assisted by bots powering up and referring to "LRC-V3" 2231 | -9/Storage | Lost 4 allies 2302 | -9/Storage | Garrison activated, responded to threat 2350 | -9/Storage | Lost 6 allies 2371 | -9/Storage | Destroyed by Y-45 Defender with Beam Rifle Last Messages --------------- within the floor. 02356_ Assault Rifle severed. 02356_ Carbon-fiber Leg severed. 02356_ Cld. Ion Engine severed. 02357_ Triggered Blade Trap. 02357_ Massive razor-sharp blades shoot up from within the floor. 02357_ Aluminum Leg severed. 02357_ Katana severed. 02358_ K-01 Serf cleans the Transfer Shaft. 02359_ Acquired Katana. 02361_ R-06 Scavenger collects Aluminum Leg. 02362_ K-01 Serf cleans the Transfer Shaft. 02363_ Acquired Aluminum Leg. 02365_ R-06 Scavenger collects Carbon-fiber Leg. 02367_ Sneak attack on R-06 Scavenger. 02367_ Destroyed Lgt. Ion Engine. 02367_ R-06 Scavenger destroyed. 02369_ K-01 Serf collects debris. 02371_ Acquired Carbon-fiber Leg. Map ----- +----------------------------------------------------+ | ??????????????????????????????????????????? | | ??????????????????????????????????????????? | | ??????????????????????????????????????????? | | ??????????????????????????????????????????? | | ??????????????????????????????????????????? | | ??????????????????????????????????????????? | | ??????????????????????????????????????????? | | ??????????????????????????????????????????? | | ??????????????????????????????????????????? | | ????????????????????????####### #?????????? | | ????????????????????????#!!| #???????? | | ???????????????????????""!| #???????? | | ???????????????????????R !| """ #???????? | | ???????????????????????"" """ #???????? | | ????????????????????????# """ """ #???????? | | ????????????????????????# "R #???????? | | ????????????????????????# """ #???????? | | ????????????????????????# #???????? | | ???????????##########???#####/#####???????? | | ???????????# #??????# Y #??????????? | | ???????????# T """ ######## #??????????? | | ???????????# """ + #?"""??????? | | ???????????# """ ##### # """??????? | | ??????????## #???# + """ ?????? | | ??????????#T """ #???# % Yr# ???? | | ??????????## """ #???#@^= ##########?? | | ???????????# ! """ #???#[=! k# ??? | | ???????????# #???#* # ???? | | ??????##########+######## # """""???? | | ?? # """""???? | | ?? a """""???? | | ?? # #? | | ???#T### ##################+## #? | | ???????# ??????????????# ! # #? | | ???????# ????????####### ###########? | | ?####### =######## #* #?????????? | | !% % %#% ##?????????? | | * = %+% % #??????????? | | =% # """% #??????????? | | ###################[* % # """ #??????????? | | ??????????????????##%#### """ #??????????? | | ???????????????#####%#??#####/##??????????? | | ???????????????# ######## ##??????????? | | ???????????????# % #########??? | | ???????????????# + " !!!#??? | | ???????????????# # ! #??? | | ???????????????# ########### "!!!!#??? | | ???????????????## #############T######??? | | ??############### ## #?###???????? | | ??# # ## """ #???????????? | +----------------------------------------------------+ Best States ------------- Heat Dissipation 28 Energy Generation 18 Energy Capacity 280 Matter Stores 300 Matter Capacity 300 Sight Range 16 Robot Scan Range 14 Terrain Scan Range 16 Terrain Scan Density 10 Evasion (%) 55 Targeting Accuracy 5 Melee Accuracy 5 Offensive Hacking 10 Item Schematics ----------------- None Robot Schematics ------------------ None Fabricated ------------ Nothing Repaired ---------- Nothing Alien Tech Used ----------------- None Achievements -------------- The More The Merrier Troublemaker Challenges ------------ None Game ------ Seed DamperSalvageRedirector Manual? 0 Play Time 00:36:02 Cumulative 5.2 hours Start 2025.07.12 @ 22:20:02 End 2025.07.13 @ 04:59:47 Sessions 3 Manual Loads 0 Difficulty Rogue Special Mode None Game No. 11 Rogue 11 Adventurer 0 Explorer 0 Win Type - Total 0 Types 0/0/0/0/0/0/0/0/0/0 Lore% 2 Gallery% 8 Achievement% 8 Wizard Run 0 Options --------- Layout 2 ASCII 0 Keyboard 1 Movement Vi Keybinds 0 Fullscreen 1 Font 32/SmallcapsGlow Map View 50x44 Zoom Use 0% Tactical HUD 1 Map Filters NONE Filters NONE Steam 1 RUN: ee93ef99-8fd9-46a0-98fd-30893f4e3e3e